Cogmind - Beta 9.6 @@@ ROGUE MODE // 2020.05.03 @ 16:48:29 Player: Teratos Result: Self-destructed Performance ------------- Evolutions (2) 1000 Regions Visited (3) 600 Robots Destroyed (25) 125 Value Destroyed (484) 484 Prototype IDs (2) 40 Alien Tech Used (0) 0 Bonus (0) 0 TOTAL SCORE: 2249 Bonus ------- None Cogmind --------- Core Integrity 256/550 Matter 60/300 Energy 100/100 System Corruption 0% Temperature Cool (0) Movement Core (50) Location -8/Materials Parts ------- > --- POWER (1) -------- (None) > --- PROPULSION (4) --- (None) > --- UTILITY (2) ------ (None) > --- WEAPON (4) ------- (None) > --- INVENTORY (4) ---- (None) Peak State ------------ > --- POWER ------------ Ion Engine > --- PROPULSION ------- Flight Unit VTOL Module VTOL Module > --- UTILITY ---------- (None) > --- WEAPON ----------- Grenade Launcher Improved Grenade Launcher Improved Grenade Launcher Improved Grenade Launcher > --- INVENTORY -------- (None) [Rating: 16] Favorites ----------- Power Ion Engine Engine Ion Engine Propulsion Flight Unit Wheel Wheel Flight Unit Flight Unit Utility Sensor Array Device Sensor Array Storage Small Storage Unit Processor Seismic Analyzer Weapon Improved Grenade Launcher Energy Gun EM Pulse Gun Ballistic Gun Assault Rifle Launcher Improved Grenade Launcher Build | -11 -10 -9 -8 ------- Run | Scr Mat Mat Mat Slots Evolved 4 | . . 2 2 Power . | . . . . Propulsion 2 | . . 2 . Utility . | . . . . Weapon 2 | . . . 2 Parts Attached 27 | 10 6 7 4 Power 4 | 2 . 2 . Engine 4 | 2 . 2 . Core . | . . . . Reactor . | . . . . Propulsion 8 | 2 3 3 . Treads . | . . . . Leg . | . . . . Wheel 2 | 2 . . . Hover . | . . . . Flight 6 | . 3 3 . Utility 7 | 4 2 . 1 Device 3 | 1 1 . 1 Storage 3 | 2 1 . . Processor 1 | 1 . . . Hackware . | . . . . Protection . | . . . . Artifact . | . . . . Weapon 8 | 2 1 2 3 Energy Gun 1 | 1 . . . Energy Cannon . | . . . . Ballistic Gun 1 | 1 . . . Ballistic Cannon . | . . . . Launcher 6 | . 1 2 3 Special Weapon . | . . . . Impact Weapon . | . . . . Slashing Weapon . | . . . . Piercing Weapon . | . . . . Special Melee Weapon . | . . . . Unidentified Prototypes . | . . . . Parts Lost 11 | . . 2 9 Power 1 | . . . 1 Propulsion 4 | . . 1 3 Utility 1 | . . . 1 Weapon 5 | . . 1 4 Highest Loss Streak 7 | . . 2 7 Average Slot Usage (%) 64 | . 74 66 49 Engine 9 | . 12 9 4 Wheel 3 | . 10 . . Flight 25 | . 16 34 20 Device 4 | . 7 4 . Processor 1 | . 6 . . Energy Gun 1 | . 6 . . Launcher 17 | . 12 17 24 Naked Turns 45 | . . . 45 Heaviest Build 26 | 17 11 18 26 Greatest Support 20 | 20 20 18 14 Greatest Overweight (x) 2 | . 2 1 1 Average Overweight (x) . | . . . . Largest Inventory Capacity 10 | 8 10 4 4 Average Capacity 4 | 5 4 4 4 Most Carried 4 | 2 4 3 2 Average Carried 1 | . 1 2 . Final Capacity 4 | 4 4 4 4 Final Carried 3 | 2 1 3 . Class Distribution -------------------- 66% | Mutant 19% | Sprinter 14% | Bomber Dominant Class ---------------- Mutant | -10/Materials Sprinter | -9/Materials Bomber | -8/Materials Resources | -11 -10 -9 -8 ----------- Run | Scr Mat Mat Mat Matter Collected 560 | 321 60 171 8 Remotely . | . . . . Salvage Created 513 | 206 45 215 47 Parts 58 | 18 16 23 1 Haulers Intercepted . | . . . . Recyclers Shooed . | . . . . Parts Field Recycled . | . . . . Retrieved Matter . | . . . . Parts Self-Destructed . | . . . . Prevented . | . . . . Kills | -11 -10 -9 -8 ------- Run | Scr Mat Mat Mat Combat Hostiles Destroyed 17 | . 6 10 1 AOE 17 | . 6 10 1 Classes Destroyed 7 | 3 1 3 . Worker 3 | 2 . 1 . Tunneler 3 | 3 . . . Recycler 1 | 1 . . . Watcher 1 | . . 1 . Swarmer 9 | . 6 3 . Grunt 5 | . . 4 1 Sentry 3 | . . 3 . Best Kill Streak 5 | 2 3 5 1 Combat Bots Only 4 | . 3 4 1 Max Kills in Single Turn 3 | 2 3 3 1 Gunslinging . | . . . . Exploded 3 | . 3 2 1 Melee . | . . . . Uniques/NPCs Destroyed . | . . . . Combat | -11 -10 -9 -8 -------- Run | Scr Mat Mat Mat Damage Taken 1016 | . 31 361 624 Core 427 | . 8 125 294 Absorbed by Shields . | . . . . Core Remaining (%) 88 | 100 96 68 . Volleys Fired 33 | 7 9 16 1 Largest 4 | 2 2 2 4 Hottest 138 | 60 70 72 138 Shots Fired 50 | 14 11 21 4 Gun 16 | 14 2 . . Cannon . | . . . . Launcher 34 | . 9 21 4 Special . | . . . . Kinetic 7 | 7 . . . Thermal . | . . . . Explosive 34 | . 9 21 4 Electromagnetic 9 | 7 2 . . Robot Hit Streak 6 | 5 1 6 1 Robot Miss Streak 1 | 1 1 . 1 Penetration Max . | . . . . Secondary Targets . | . . . . Shots Hit Robots 16 | 9 1 5 1 Core Hits 40 | 6 7 21 6 Critical Hits . | . . . . Critical Kills . | . . . . Critical Parts Destroyed . | . . . . Melee Attacks . | . . . . Impact . | . . . . Slashing . | . . . . Piercing . | . . . . Sneak Attacks . | . . . . Combat Hostiles . | . . . . Follow-up Attacks . | . . . . Damage Inflicted 1392 | 118 301 662 311 Guns 118 | 118 . . . Cannons . | . . . . Explosions 1259 | . 301 662 296 Melee . | . . . . Ramming 15 | . . . 15 Kinetic 51 | 51 . . . Thermal . | . . . . Explosive 1259 | . 301 662 296 Electromagnetic 67 | 67 . . . Impact . | . . . . Slashing . | . . . . Piercing . | . . . . Highest Corruption . | . . . . Average Corruption . | . . . . Corruption Purged . | . . . . Overload Shots . | . . . . Overflow Damage 28 | . . 19 9 Projectiles . | . . . . Explosions 28 | . . 19 9 Melee . | . . . . Knockbacks . | . . . . Impact . | . . . . Kinetic . | . . . . Secondary . | . . . . Self-Inflicted Damage 10 | . 2 . 8 Shots 2 | . 1 . 1 Rammed 5 | . . . 5 Targets Rammed 5 | . . . 5 Kicked . | . . . . Crushed . | . . . . Highest Temperature 69 | . 9 46 69 Average Temperature 15 | . 6 14 36 Received Heat Transfer 483 | . 12 174 297 Siege Activations . | . . . . Robots Corrupted . | . . . . Combat Hostiles . | . . . . Parts Fried . | . . . . Impact Corruptions . | . . . . Robots Melted . | . . . . Combat Hostiles . | . . . . Parts Melted . | . . . . Heat Transferred . | . . . . Parts Sabotaged . | . . . . Parts Stolen . | . . . . Parts Stripped . | . . . . Power Chain Reactions . | . . . . Missiles Intercepted . | . . . . Alert | -11 -10 -9 -8 ------- Run | Scr Mat Mat Mat Peak Influence 460 | 30 203 460 224 Average Influence 131 | 9 95 217 190 Maximum Alert Level 2 | . 1 2 1 Low Security (%) 76 | 100 94 66 42 Level 1 15 | . 5 9 57 Level 2 7 | . . 24 . Level 3 . | . . . . Level 4 . | . . . . Level 5 . | . . . . High Security . | . . . . Max Security . | . . . . Squads Dispatched 6 | . 3 2 1 Investigation 2 | . 2 . . Extermination . | . . . . Reinforcement 4 | . 1 2 1 Assault . | . . . . Garrison . | . . . . Intercept . | . . . . Construction Impeded . | . . . . Haulers Reinforced . | . . . . Stealth | -11 -10 -9 -8 --------- Run | Scr Mat Mat Mat Distress Signals 6 | . 3 3 . Communications Jammed . | . . . . Distress Signals . | . . . . Times Spotted 45 | . 5 29 11 Peak Tracking Total 12 | . 4 12 7 Tactical Retreats 4 | . . 3 1 Traps | -11 -10 -9 -8 ------- Run | Scr Mat Mat Mat Traps Triggered . | . . . . Indirectly . | . . . . Trap Hack Attempts . | . . . . Triggered . | . . . . Disarmed . | . . . . Reprogrammed . | . . . . Reused . | . . . . Traps Extracted . | . . . . Installed . | . . . . Triggered . | . . . . Machines | -11 -10 -9 -8 ---------- Run | Scr Mat Mat Mat Machines Disabled 3 | . 1 2 . Max in Single Turn 2 | . 1 2 . Machines Sabotaged . | . . . . Garrisons Compromised . | . . . . Overloaded Fab Kills . | . . . . Fab Network Shutdowns . | . . . . Hacking | -11 -10 -9 -8 --------- Run | Scr Mat Mat Mat Machines Accessed 6 | . 4 2 . Terminals 5 | . 4 1 . Fabricators . | . . . . Repair Stations . | . . . . Recycling Units . | . . . . Scanalyzers 1 | . . 1 . Garrison Access . | . . . . Total Hacks 28 | . 22 6 . Successful 18 | . 14 4 . Failed 10 | . 8 2 . Catastrophic 2 | . 2 . . Database Lockouts . | . . . . Manual . | . . . . Terminals 25 | . 22 3 . Fabricators . | . . . . Repair Stations . | . . . . Recycling Units . | . . . . Scanalyzers 3 | . . 3 . Garrison Access . | . . . . Terminal Hacks 15 | . 14 1 . Record 6 | . 6 . . Robot Analysis 2 | . 2 . . Prototype ID Bank 1 | . 1 . . Unreport Threat 2 | . 2 . . Patrol Status 1 | . . 1 . Recall Reinforcements 2 | . 2 . . Hauler Manifests 1 | . 1 . . Fabricator Hacks . | . . . . Repair Station Hacks . | . . . . Recycling Unit Hacks . | . . . . Scanalyzer 3 | . . 3 . Insert Component 1 | . . 1 . Analyze 2 | . . 2 . Garrison Access Hacks . | . . . . Unauthorized Hacks . | . . . . Terminals . | . . . . Fabricators . | . . . . Repair Stations . | . . . . Recycling Units . | . . . . Scanalyzers . | . . . . Garrison Access . | . . . . Data Cores Recovered . | . . . . Used . | . . . . Hacking Detections 6 | . 4 2 . Full Trace Events 4 | . 4 . . Feedback Events . | . . . . Feedback Blocked . | . . . . Robot Schematics Acquired . | . . . . Robots Built . | . . . . Matter . | . . . . Time . | . . . . Total Robot Build Rating . | . . . . Part Schematics Acquired 1 | . . 1 . Parts Built . | . . . . Matter . | . . . . Time . | . . . . Total Part Build Rating . | . . . . Parts Repaired . | . . . . Time . | . . . . Parts Recycled . | . . . . Recycled Matter . | . . . . Retrieved Matter . | . . . . Retrieved Components . | . . . . Parts Scanalyzed 1 | . . 1 . Part Schematics Acquired 1 | . . 1 . Parts Damaged . | . . . . Bothacking | -11 -10 -9 -8 ------------ Run | Scr Mat Mat Mat Used RIF Installer . | . . . . Robots Hacked . | . . . . Non-combat . | . . . . Combat . | . . . . Robot Hacks Applied . | . . . . Relay Couplers Released . | . . . . Robots Rewired . | . . . . Allies Hacked . | . . . . Hacks Repelled . | . . . . Allies | -11 -10 -9 -8 -------- Run | Scr Mat Mat Mat Total Allies . | . . . . Largest Group . | . . . . Highest-Rated Group . | . . . . Highest-Rated Ally . | . . . . Total Orders . | . . . . Ally Attacks . | . . . . Total Damage . | . . . . Kills . | . . . . Allies Corrupted . | . . . . Allies Melted . | . . . . Intel | -11 -10 -9 -8 ------- Run | Scr Mat Mat Mat Robot Analysis Total 2 | . 2 . . Derelict Logs Recovered . | . . . . Drone Launches . | . . . . Drone Recoveries . | . . . . Exploration | -11 -10 -9 -8 ------------- Run | Scr Mat Mat Mat Turns Passed 1076 | 272 242 351 211 Spaces Moved 1520 | 336 407 546 231 Core 220 | 137 . . 83 Treads . | . . . . Legs . | . . . . Wheels 300 | 199 101 . . Hover . | . . . . Flight 1000 | . 306 546 148 Fastest Speed 31 | 50 37 31 37 Average Speed 54 | 67 50 36 85 Slowest Speed 205 | 80 205 114 120 Overloaded Moves . | . . . . Propulsion Burnouts . | . . . . Robots Hopped 18 | . 6 12 . Cave-ins Triggered . | . . . . Exploration Rate (%) 29 | 8 50 45 13 Regions Visited 3 Branch Regions . Pre-discovered Areas . | . . . . Known Exits Taken . | . . . . Unknown Exits Taken 3 | 1 1 1 . Scrap Searched . | . . . . Spaces Dug 19 | . 12 7 . Terrain Destroyed 251 | . 70 149 32 Melee . | . . . . Projectile . | . . . . AOE 251 | . 70 149 32 Actions | -11 -10 -9 -8 --------- Run | Scr Mat Mat Mat Total 1694 | 363 428 662 241 Wait 108 | 8 . 100 . Move 1482 | 335 395 521 231 Hop 17 | . 5 12 . Pick Up 3 | . 1 2 . Fast Attach 19 | 9 5 4 1 Attach 7 | 1 . 3 3 Detach 8 | 3 2 3 . Swap 1 | . 1 . . Drop 11 | . 10 1 . Fire 33 | 7 9 16 1 Melee . | . . . . Ram 5 | . . . 5 Kick . | . . . . Crush . | . . . . Escape Stasis . | . . . . Rewire . | . . . . Trap . | . . . . Miscellaneous . | . . . . Route ------- -11/Scrapyard -10/Materials (discovered 3 exits: *Mat / [*Min x2]) -9/Materials -8/Materials History --------- Turn | Location | Event 10 | -11/Scrapyard | Discovered new exit (range 16) 273 | -11/Scrapyard | Entered Materials 312 | -10/Materials | Build established: Mutant 342 | -10/Materials | Discovered new exit (range 15) 421 | -10/Materials | Discovered new exit (range 16) 504 | -10/Materials | Discovered new exit (range 13) 515 | -10/Materials | Entered another Materials area 515 | -9/Materials | Evolved 2 slots: Propulsion x2 618 | -9/Materials | Discovered new exit (range 11) 866 | -9/Materials | Entered another Materials area 866 | -8/Materials | Evolved 2 slots: Weapon x2 1063 | -8/Materials | Lost 7 parts (3n1u3w) 1077 | -8/Materials | Core integrity fell below 50% 1077 | -8/Materials | Self-destructed Last Messages --------------- 00921_ T-07 Excavator is excavating. 00941_ ALERT: Hostiles spotted, dispatching reinforcements to Terminal M003. 00946_ Acquired 8 matter. 00948_ The unstable cave ceiling collapses. 00949_ Imp. Grenade Launcher destroyed. 00953_ L-31 Rogue destroyed. 00960_ Ion Engine destroyed. 01014_ Imp. Grenade Launcher destroyed. 01014_ VTOL Module destroyed. 01016_ Acquired Recoil Stabilizer. 01025_ Grenade Launcher destroyed. 01029_ VTOL Module destroyed. 01030_ Imp. Grenade Launcher destroyed. 01030_ Flight Unit destroyed. 01032_ Recoil Stabilizer destroyed. 01034_ Slammed into G-47 Trooper. 01036_ Slammed into A-02 Transporter. 01049_ T-07 Excavator is excavating. 01074_ Slammed into G-47 Trooper. Map ----- +----------------------------------------------------+ | ???????????????????????????????????????? | | ???????????????????????????????????????? | | ???????????????????????????????????????? | | ???????????????????????????????????????? | | ???????????????????????????????????????? | | ???????????????????????????????????????? | | ???????????????????????????????????????? | | ???????????????????????????????????????? | | ???????????????????????????????????????? | | ???????????????????????????????????????? | | ???????????????????????????????????????? | | ???????????????????????????????????????? | | ???????????????????????????????????????? | | ???????????????????????????????????????? | | ?????????????????????????+?????????????? | | ????????????????????????? ?????????????? | | ????????????????????????? ?????????????? | | ????????????????????????#o#????????????? | | ????????????????????????# #????????????? | | ????????????????????????# #????????????? | | ????????????????????????#g#????????????? | | ????????????????????????# #????????????? | | ????????????????????????# #????????????? | | ????????????????????????# #????????#???? | | ?????????????????########g#??????? #???? | | ?????????????????# """ #@#??????? #???? | | ?????????????????# "T" #g######## #???? | | ?????????????????# + #???? | | ??????????######## ####### #???? | | ??????????# """ # =## ## # #???? | | ??????????# """ #[ # #???? | | ??????????# """ =######## # ### #???? | | ??????????# ######## # # #???? | | ??????????# / #???? | | ??????????# ######## # #???? | | ??????#####+####/# #???? | | ??????# / """"" #???? | | ??????# # # """"" # % ####???? | | ??????# # # """"" # #??????? | | ??????# ## # """"" # #??????? | | ??????########## # """"" # #??????? | | ??????########## # """"" ## #??????? | | ??????# # # """"" + #??????? | | ??????# # # # #??????? | | ??????# # #####+#### ###????? | | ??????# """ # #????? | | ??????#""""" / #????? | | ??????#""""" # #????? | | ??????#""""" ## ### ######### #????? | | ??????# """ ## #?# # ## #????? | +----------------------------------------------------+ Best States ------------- Heat Dissipation 31 Energy Generation 10 Energy Capacity 250 Matter Stores 300 Matter Capacity 300 Sight Range 16 Robot Scan Range 10 Terrain Scan Range 16 Terrain Scan Density 60 Evasion (%) 63 Recoil Reduction 2 Item Schematics ----------------- Imp. Grenade Launcher | -9/Materials | Scanalyzed Robot Schematics ------------------ None Fabricated ------------ Nothing Alien Tech Used ----------------- None Achievements -------------- None Challenges ------------ None Game ------ Seed BeamFlightTendrils Manual? 0 Play Time 00:37:46 Cumulative 11.2 hours Start 2020.04.21 @ 19:21:18 End 2020.05.03 @ 16:48:29 Sessions 2 Manual Loads 0 Difficulty Rogue Special Mode None Game No. 22 Rogue 22 Adventurer 0 Explorer 0 Win Type - Total 0 Types 0/0/0/0/0/0/0 Lore% 2 Gallery% 10 Achievement% 9 Wizard Run 0 Options --------- ASCII 0 Keyboard 0 Movement Arrows Keybinds 0 Fullscreen 1 Font 18/SmallcapsGlow Map View 76x50 Tactical HUD 1 Map Filters NONE Filters NONE Steam 1 RUN: 231b580a-41c1-42a0-ac41-fb82a76a4aec